fUSD/lending_fUSD_20250602
["ID","MTS","AMOUNT","RATE_DAILY","PERIOD"]
[363775102,1748867455995,-420.0,0.00019589,2]
[363775103,1748867456005,-420.0,0.00019589,2]
[363775104,1748867456014,-420.0,0.00019589,2]
[363775105,1748867456024,-420.0,0.00019589,2]
[363775106,1748867456033,-420.0,0.00019589,2]
[363775107,1748867456043,-420.0,0.00019589,2]
[363775108,1748867456052,-420.0,0.00019589,2]
[363775109,1748867456062,-420.0,0.00019589,2]
[363775110,1748867456072,-420.0,0.00019589,2]
[363775111,1748867456081,-420.0,0.00019589,2]
[363775112,1748867456091,-420.0,0.00019589,2]
[363775113,1748867456101,-420.0,0.00019589,2]
[363775114,1748867456111,-420.0,0.00019589,2]
[363775115,1748867456120,-420.0,0.00019589,2]
[363775116,1748867456130,-420.0,0.00019589,2]
[363775117,1748867456139,-420.0,0.00019589,2]
[363775118,1748867456149,-420.0,0.00019589,2]
[363775119,1748867456158,-420.0,0.00019589,2]
[363775120,1748867456168,-420.0,0.00019589,2]
[363775121,1748867456178,-420.0,0.00019589,2]
[363775122,1748867456187,-420.0,0.00019589,2]
[363775123,1748867456197,-420.0,0.00019589,2]
[363775124,1748867456207,-420.0,0.00019589,2]
[363775125,1748867456217,-420.0,0.00019589,2]
[363775126,1748867456227,-296.27208029,0.00019589,2]
[363775127,1748867456236,-215.61929304,0.00019589,2]
[363775128,1748867456246,-420.0,0.00019589,2]
[363775129,1748867456256,-420.0,0.00019589,2]
[363775130,1748867456266,-497.03611016,0.00019589,2]
[363775131,1748867456275,-420.0,0.00019589,2]
[363775132,1748867456285,-420.0,0.00019589,2]
[363775133,1748867456296,-462.42,0.00019589,2]
[363775134,1748867456305,-958.67,0.00019589,2]
[363775135,1748867456315,-528.58780051,0.00019589,2]
[363775136,1748867456325,-420.0,0.00019589,2]
[363775137,1748867456334,-176.48950442,0.00019589,2]
[363775138,1748867456344,-2750.23,0.00019589,2]
[363775139,1748867456354,-158.46,0.00019589,2]
[363775140,1748867456364,-1165.66,0.00019589,2]
[363775141,1748867456374,-420.0,0.00019589,2]
[363775142,1748867456383,-420.0,0.00019589,2]
[363775143,1748867456393,-470.09,0.00019589,2]
[363775144,1748867456403,-420.0,0.00019589,2]
[363775145,1748867456412,-152.08,0.00019589,2]
[363775146,1748867456422,-420.0,0.00019589,2]
[363775147,1748867456431,-420.0,0.00019589,2]
[363775148,1748867456444,-420.0,0.00019589,2]
[363775149,1748867456453,-420.0,0.00019589,2]
[363775150,1748867456462,-420.0,0.00019589,2]
[363775151,1748867456472,-420.0,0.00019589,2]
[363775152,1748867456483,-420.0,0.00019589,2]
[363775153,1748867456492,-14935.26,0.00019589,2]
[363775154,1748867456502,-541.9,0.00019589,2]
[363775155,1748867456513,-509.54,0.00019589,2]
[363775156,1748867456522,-1157.04,0.00019589,2]
[363775157,1748867456532,-420.0,0.00019589,2]
[363775158,1748867456542,-563.6,0.00019589,2]
[363775159,1748867456554,-420.0,0.00019589,2]
[363775160,1748867456564,-420.0,0.00019589,2]
[363775161,1748867456574,-420.0,0.00019589,2]
[363775162,1748867456583,-493.43,0.00019589,2]
[363775163,1748867456593,-681.0,0.00019589,2]
[363775164,1748867456603,-420.0,0.00019589,2]
[363775165,1748867456613,-420.0,0.00019589,2]
[363775166,1748867456622,-420.0,0.00019589,2]
[363775167,1748867456632,-1130.25,0.00019589,2]
[363775168,1748867456642,-685.03,0.00019589,2]
[363775169,1748867456651,-420.0,0.00019589,2]
[363775170,1748867456661,-420.0,0.00019589,2]
[363775171,1748867456671,-521.31,0.00019589,2]
[363775172,1748867456680,-420.0,0.00019589,2]
[363775173,1748867456690,-538.48,0.00019589,2]
[363775174,1748867456700,-420.0,0.00019589,2]
[363775175,1748867456711,-420.0,0.00019589,2]
[363775176,1748867456722,-1489.08,0.00019589,2]
[363775177,1748867456732,-420.0,0.00019589,2]
[363775178,1748867456742,-1042.11,0.00019589,2]
[363775179,1748867456752,-484.83932782,0.00019589,2]
[363775180,1748867456761,-420.0,0.00019589,2]
[363775181,1748867456771,-505.0703437,0.00019589,2]
[363775182,1748867456780,-1690.99,0.00019589,2]
[363775183,1748867456790,-420.0,0.00019589,2]
[363775184,1748867456800,-420.0,0.00019589,2]
[363775185,1748867456810,-420.0,0.00019589,2]
[363775186,1748867456820,-420.0,0.00019589,2]
[363775187,1748867456830,-550.3,0.00019589,2]
[363775188,1748867456840,-905.78,0.00019589,2]
[363775189,1748867456850,-420.0,0.00019589,2]
[363775190,1748867456860,-420.0,0.00019589,2]
[363775191,1748867456869,-420.0,0.00019589,2]
[363775192,1748867456882,-4202.04,0.00019589,2]
[363775193,1748867456891,-726.96,0.00019589,2]
[363775194,1748867456901,-420.0,0.00019589,2]
[363775195,1748867456911,-420.0,0.00019589,2]
[363775196,1748867456923,-420.0,0.00019589,2]
[363775197,1748867456933,-800.6,0.00019589,2]
[363775198,1748867456943,-420.0,0.00019589,2]
[363775199,1748867456953,-420.0,0.00019589,2]
[363775200,1748867456963,-978.64,0.00019589,2]
[363775201,1748867456973,-420.0,0.00019589,2]
[363775202,1748867456982,-420.0,0.00019589,2]
[363775203,1748867456991,-420.0,0.00019589,2]
[363775204,1748867457001,-420.0,0.00019589,2]
[363775205,1748867457010,-1690.87,0.00019589,2]
[363775206,1748867457021,-420.0,0.00019589,2]
[363775207,1748867457031,-420.0,0.00019589,2]
[363775208,1748867457041,-420.0,0.00019589,2]
[363775209,1748867457051,-420.0,0.00019589,2]
[363775210,1748867457061,-420.0,0.00019589,2]
[363775211,1748867457071,-420.0,0.00019589,2]
[363775212,1748867457081,-420.0,0.00019589,2]
[363775213,1748867457091,-420.0,0.00019589,2]
[363775214,1748867457101,-420.0,0.00019589,2]
[363775215,1748867457111,-4165.15,0.00019589,2]
[363775216,1748867457122,-420.0,0.00019589,2]
[363775217,1748867457132,-420.0,0.00019589,2]
[363775218,1748867457143,-389.2836694,0.00019589,2]
[363775219,1748867457154,-468.04,0.00019589,2]
[363775220,1748867457164,-420.0,0.00019589,2]
[363775221,1748867457174,-420.0,0.00019589,2]
[363775222,1748867457183,-420.0,0.00019589,2]
[363775223,1748867457194,-420.0,0.00019589,2]
[363775224,1748867457204,-542.46,0.00019589,2]
[363775225,1748867457214,-420.0,0.00019589,2]
[363775226,1748867457223,-420.0,0.00019589,2]
[363775227,1748867457232,-420.0,0.00019589,2]
[363775228,1748867457242,-420.0,0.00019589,2]
[363775229,1748867457252,-420.0,0.00019589,2]
[363775230,1748867457260,-669.01,0.00019589,2]
[363775231,1748867457269,-420.0,0.00019589,2]
[363775232,1748867457279,-552.11376907,0.00019589,2]
[363775233,1748867457289,-420.0,0.00019589,2]
[363775234,1748867457299,-420.0,0.00019589,2]
[363775235,1748867457308,-420.0,0.00019589,2]
[363775236,1748867457318,-667.42,0.00019589,2]
[363775237,1748867457327,-420.0,0.00019589,2]
[363775238,1748867457338,-420.0,0.00019589,2]
[363775239,1748867457348,-1352.08,0.00019589,2]
[363775240,1748867457358,-420.0,0.00019589,2]
[363775241,1748867457371,-842.73,0.00019589,2]
[363775242,1748867457380,-1858.25,0.00019589,2]
[363775243,1748867457390,-420.0,0.00019589,2]
[363775244,1748867457399,-420.0,0.00019589,2]
[363775245,1748867457410,-554.07,0.00019589,2]
[363775246,1748867457420,-420.0,0.00019589,2]
[363775247,1748867457430,-420.0,0.00019589,2]
[363775248,1748867457443,-420.0,0.00019589,2]
[363775249,1748867457453,-420.0,0.00019589,2]
[363775250,1748867457463,-420.0,0.00019589,2]
[363775251,1748867457472,-820.8,0.00019589,2]
[363775252,1748867457483,-550.36,0.00019589,2]
[363775253,1748867457493,-420.0,0.00019589,2]
[363775254,1748867457503,-2393.79,0.00019589,2]
[363775255,1748867457513,-420.0,0.00019589,2]
[363775256,1748867457524,-420.0,0.00019589,2]
[363775257,1748867457534,-864.26,0.00019589,2]
[363775258,1748867457544,-3160.13,0.00019589,2]
[363775259,1748867457552,-420.0,0.00019589,2]
[363775260,1748867457561,-420.0,0.00019589,2]
[363775261,1748867457570,-1767.75,0.00019589,2]
[363775262,1748867457578,-420.0,0.00019589,2]
[363775263,1748867457587,-420.0,0.00019589,2]
[363775264,1748867457597,-2585.55,0.00019589,2]
[363775265,1748867457607,-455.6800929,0.00019589,2]
[363775266,1748867457617,-1243.7,0.00019589,2]
[363775267,1748867457627,-420.0,0.00019589,2]
[363775268,1748867457636,-420.0,0.00019589,2]
[363775269,1748867457646,-2534.59,0.00019589,2]
[363775270,1748867457655,-420.0,0.00019589,2]
[363775271,1748867457665,-420.0,0.00019589,2]
[363775272,1748867457675,-362.26047882,0.00019589,2]
[363775273,1748867457684,-880.65,0.00019589,2]
[363775274,1748867457693,-420.0,0.00019589,2]
[363775275,1748867457703,-420.0,0.00019589,2]
[363775276,1748867457712,-472.44197213,0.00019589,2]
[363775277,1748867457721,-1315.03,0.00019589,2]
[363775278,1748867457730,-420.0,0.00019589,2]
[363775279,1748867457739,-420.0,0.00019589,2]
[363775280,1748867457749,-420.0,0.00019589,2]
[363775281,1748867457758,-420.0,0.00019589,2]
[363775282,1748867457768,-420.0,0.00019589,2]
[363775283,1748867457777,-472.96,0.00019589,2]
[363775284,1748867457787,-420.0,0.00019589,2]
[363775285,1748867457797,-420.0,0.00019589,2]
[363775286,1748867457807,-420.0,0.00019589,2]
[363775287,1748867457817,-462.31,0.00019589,2]
[363775288,1748867457827,-1271.04,0.00019589,2]
[363775289,1748867457837,-648.74,0.00019589,2]
[363775290,1748867457848,-420.0,0.00019589,2]
[363775291,1748867457858,-420.0,0.00019589,2]
[363775292,1748867457868,-420.0,0.00019589,2]
[363775293,1748867457879,-420.0,0.00019589,2]
[363775294,1748867457888,-420.0,0.00019589,2]
[363775295,1748867457898,-420.0,0.00019589,2]
[363775296,1748867457908,-692.54,0.00019589,2]
[363775297,1748867457918,-3069.14,0.00019589,2]
[363775298,1748867457928,-685.63,0.00019589,2]
[363775299,1748867457938,-420.0,0.00019589,2]
[363775300,1748867457947,-1840.13,0.00019589,2]
[363775301,1748867457958,-612.55,0.00019589,2]
[363775302,1748867457968,-990.37,0.00019589,2]
[363775303,1748867457978,-420.0,0.00019589,2]
[363775304,1748867457987,-420.0,0.00019589,2]
[363775305,1748867457997,-467.8,0.00019589,2]
[363775306,1748867458007,-420.0,0.00019589,2]
[363775307,1748867458016,-420.0,0.00019589,2]
[363775308,1748867458025,-420.0,0.00019589,2]
[363775309,1748867458036,-1256.31,0.00019589,2]
[363775310,1748867458046,-520.02,0.00019589,2]
[363775311,1748867458055,-420.0,0.00019589,2]
[363775312,1748867458065,-512.28,0.00019589,2]
[363775313,1748867458075,-420.0,0.00019589,2]
[363775314,1748867458085,-420.0,0.00019589,2]
[363775315,1748867458093,-565.39,0.00019589,2]
[363775316,1748867458103,-743.93,0.00019589,2]
[363775317,1748867458112,-420.0,0.00019589,2]
[363775318,1748867458122,-420.0,0.00019589,2]
[363775319,1748867458132,-1533.64,0.00019589,2]
[363775320,1748867458142,-420.0,0.00019589,2]
[363775321,1748867458152,-723.86,0.00019589,2]
[363775322,1748867458161,-1076.54,0.00019589,2]
[363775323,1748867458171,-487.30933949,0.00019592,2]
[363775324,1748867458181,-1468.982498,0.00019599,2]
[363775325,1748867458191,-3200.0,0.000196,7]
[363775326,1748867458201,-3758.50160772,0.00019626,2]
[363775327,1748867458212,-2122.4532337,0.00019626,2]
[363775328,1748867458222,-150.0,0.00019638,4]
[363775329,1748867458232,-921.08,0.00019658,2]
[363775330,1748867458242,-460.6,0.00019663,2]
[363775331,1748867458252,-487.30933949,0.00019695,2]
[363775332,1748867458261,-1000.0,0.000197,2]
[363775333,1748867458270,-4000.0,0.000197,7]
[363775334,1748867458280,-196.41277909,0.00019709,2]
[363775335,1748867458290,-192.77793536,0.00019716,2]
[363775336,1748867458299,-3758.50160772,0.00019717,2]
[363775337,1748867458310,-2122.4532337,0.00019717,2]
[363775338,1748867458320,-1000.0,0.00019721,2]
[363775339,1748867458329,-1000.0,0.00019721,2]
[363775340,1748867458339,-1000.0,0.00019721,2]
[363775341,1748867458349,-7264.0,0.00019726,2]
[363775342,1748867458358,-420.0,0.00019726,2]
[363775343,1748867458368,-1995.139131,0.00019726,2]
[363775344,1748867458377,-151.877351,0.00019726,2]
[363775345,1748867458523,-183.957081,0.00019726,2]
[363775346,1748867458533,-2505.226592,0.00019726,2]
[363775347,1748867458543,-420.0,0.00019726,2]
[363775348,1748867458552,-420.0,0.00019726,2]
[363775349,1748867458561,-420.0,0.00019726,2]
[363775350,1748867458571,-506.36,0.00019726,2]
[363775351,1748867458581,-420.0,0.00019726,2]
[363775352,1748867458591,-420.0,0.00019726,2]
[363775353,1748867458601,-420.0,0.00019726,2]
[363775354,1748867458611,-420.0,0.00019726,2]
[363775355,1748867458620,-420.0,0.00019726,2]
[363775356,1748867458630,-547.67,0.00019726,2]
[363775357,1748867458639,-420.0,0.00019726,2]
[363775358,1748867458648,-496.37708953,0.00019726,2]
[363775359,1748867458658,-420.0,0.00019726,2]
[363775360,1748867458667,-420.0,0.00019726,2]
[363775361,1748867458676,-420.0,0.00019726,2]
[363775362,1748867458686,-420.0,0.00019726,2]
[363775363,1748867458695,-284.78,0.00019726,2]
[363775364,1748867458705,-420.0,0.00019726,2]
[363775365,1748867458714,-420.0,0.00019726,2]
[363775366,1748867458723,-420.0,0.00019726,2]
[363775367,1748867458733,-420.0,0.00019726,2]
[363775368,1748867458742,-420.0,0.00019726,2]
[363775369,1748867458751,-420.0,0.00019726,2]
[363775370,1748867458761,-420.0,0.00019726,2]
[363775371,1748867458770,-420.0,0.00019726,2]
[363775372,1748867458780,-420.0,0.00019726,2]
[363775373,1748867458789,-492.51,0.00019726,2]
[363775374,1748867458799,-420.0,0.00019726,2]
[363775375,1748867458809,-420.0,0.00019726,2]
[363775376,1748867458818,-215.18,0.00019726,2]
[363775377,1748867458827,-420.0,0.00019726,2]
[363775378,1748867458837,-420.0,0.00019726,2]
[363775379,1748867458848,-420.0,0.00019726,2]
[363775380,1748867458858,-420.0,0.00019726,2]
[363775381,1748867458868,-420.0,0.00019726,2]
[363775382,1748867458877,-420.0,0.00019726,2]
[363775383,1748867458886,-420.0,0.00019726,2]
[363775384,1748867458895,-480.25,0.00019726,2]
[363775385,1748867458905,-420.0,0.00019726,2]
[363775386,1748867458914,-420.0,0.00019726,2]
[363775387,1748867458924,-420.0,0.00019726,2]
[363775388,1748867458934,-420.0,0.00019726,2]
[363775389,1748867458943,-420.0,0.00019726,2]
[363775390,1748867458953,-420.0,0.00019726,2]
[363775391,1748867458962,-450.84514838,0.00019726,2]
[363775392,1748867458972,-420.0,0.00019726,2]
[363775393,1748867458981,-420.0,0.00019726,2]
[363775394,1748867458991,-420.0,0.00019726,2]
[363775395,1748867459001,-389.51217895,0.00019726,2]
[363775396,1748867459011,-420.0,0.00019726,2]
[363775397,1748867459021,-420.0,0.00019726,2]
[363775398,1748867459031,-420.0,0.00019726,2]
[363775399,1748867459040,-420.0,0.00019726,2]
[363775400,1748867459049,-420.0,0.00019726,2]
[363775401,1748867459060,-420.0,0.00019726,2]
[363775402,1748867459069,-420.0,0.00019726,2]
[363775403,1748867459079,-420.0,0.00019726,2]
[363775404,1748867459090,-420.0,0.00019726,2]
[363775405,1748867459099,-420.0,0.00019726,2]
[363775406,1748867459109,-420.0,0.00019726,2]
[363775407,1748867459119,-420.0,0.00019726,2]
[363775408,1748867459129,-420.0,0.00019726,2]
[363775409,1748867459139,-420.0,0.00019726,2]
[363775410,1748867459148,-420.0,0.00019726,2]
[363775411,1748867459158,-420.0,0.00019726,2]
[363775412,1748867459167,-420.0,0.00019726,2]
[363775413,1748867459176,-520.90136965,0.00019726,2]
[363775414,1748867459186,-420.0,0.00019726,2]
[363775415,1748867459196,-420.0,0.00019726,2]
[363775416,1748867459206,-420.0,0.00019726,2]
[363775417,1748867459216,-420.0,0.00019726,2]
[363775418,1748867459227,-420.0,0.00019726,2]
[363775419,1748867459236,-420.0,0.00019726,2]
[363775420,1748867459246,-462.42,0.00019726,2]
[363775421,1748867459256,-958.67,0.00019726,2]
[363775422,1748867459266,-482.80833406,0.00019726,2]
[363775423,1748867459275,-2750.23,0.00019726,2]
[363775424,1748867459285,-1165.66,0.00019726,2]
[363775425,1748867459295,-420.0,0.00019726,2]
[363775426,1748867459305,-420.0,0.00019726,2]
[363775427,1748867459315,-420.0,0.00019726,2]
[363775428,1748867459325,-470.09,0.00019726,2]
[363775429,1748867459336,-420.0,0.00019726,2]
[363775430,1748867459346,-420.0,0.00019726,2]
[363775431,1748867459356,-420.0,0.00019726,2]
[363775432,1748867459366,-420.0,0.00019726,2]
[363775433,1748867459377,-420.0,0.00019726,2]
[363775434,1748867459386,-420.0,0.00019726,2]
[363775435,1748867459397,-420.0,0.00019726,2]
[363775436,1748867459407,-14935.26,0.00019726,2]
[363775437,1748867459416,-1157.04,0.00019726,2]
[363775438,1748867459426,-420.0,0.00019726,2]
[363775439,1748867459437,-563.6,0.00019726,2]
[363775440,1748867459448,-420.0,0.00019726,2]
[363775441,1748867459458,-420.0,0.00019726,2]
[363775442,1748867459469,-420.0,0.00019726,2]
[363775443,1748867459479,-493.43,0.00019726,2]
[363775444,1748867459490,-681.0,0.00019726,2]
[363775445,1748867459499,-420.0,0.00019726,2]
[363775446,1748867459510,-420.0,0.00019726,2]
[363775447,1748867459522,-420.0,0.00019726,2]
[363775448,1748867459533,-1130.25,0.00019726,2]
[363775449,1748867459543,-685.03,0.00019726,2]
[363775450,1748867459553,-420.0,0.00019726,2]
[363775451,1748867459564,-420.0,0.00019726,2]
[363775452,1748867459574,-521.31,0.00019726,2]
[363775453,1748867459584,-420.0,0.00019726,2]
[363775454,1748867459595,-420.0,0.00019726,2]
[363775455,1748867459606,-420.0,0.00019726,2]
[363775456,1748867459616,-420.0,0.00019726,2]
[363775457,1748867459626,-1042.11,0.00019726,2]
[363775458,1748867459635,-420.0,0.00019726,2]
[363775459,1748867459645,-1489.08,0.00019726,2]
[363775460,1748867459655,-1690.99,0.00019726,2]
[363775461,1748867459665,-420.0,0.00019726,2]
[363775462,1748867459675,-420.0,0.00019726,2]
[363775463,1748867459685,-420.0,0.00019726,2]
[363775464,1748867459695,-219.74588097,0.00019726,2]
[363775465,1748867459705,-550.3,0.00019726,2]
[363775466,1748867459715,-905.78,0.00019726,2]
[363775467,1748867459725,-420.0,0.00019726,2]
[363775468,1748867459734,-420.0,0.00019726,2]
[363775469,1748867459744,-420.0,0.00019726,2]
[363775470,1748867459754,-4202.04,0.00019726,2]
[363775471,1748867459764,-726.96,0.00019726,2]
[363775472,1748867459773,-420.0,0.00019726,2]
[363775473,1748867459783,-420.0,0.00019726,2]
[363775474,1748867459794,-364.12,0.00019726,2]
[363775475,1748867459803,-800.6,0.00019726,2]
[363775476,1748867459813,-420.0,0.00019726,2]
[363775477,1748867459823,-420.0,0.00019726,2]
[363775478,1748867459833,-978.64,0.00019726,2]
[363775479,1748867459843,-420.0,0.00019726,2]
[363775480,1748867459853,-420.0,0.00019726,2]
[363775481,1748867459863,-420.0,0.00019726,2]
[363775482,1748867459873,-420.0,0.00019726,2]
[363775483,1748867459882,-1690.87,0.00019726,2]
[363775484,1748867459892,-420.0,0.00019726,2]
[363775485,1748867459903,-420.0,0.00019726,2]
[363775486,1748867459913,-420.0,0.00019726,2]
[363775487,1748867459923,-420.0,0.00019726,2]
[363775488,1748867459934,-420.0,0.00019726,2]
[363775489,1748867459944,-420.0,0.00019726,2]
[363775490,1748867459954,-420.0,0.00019726,2]
[363775491,1748867459964,-188.84,0.00019726,2]
[363775492,1748867459974,-420.0,0.00019726,2]
[363775493,1748867459983,-4165.15,0.00019726,2]
[363775494,1748867459994,-420.0,0.00019726,2]
[363775495,1748867460004,-420.0,0.00019726,2]
[363775496,1748867460014,-468.04,0.00019726,2]
[363775497,1748867460024,-420.0,0.00019726,2]
[363775498,1748867460035,-420.0,0.00019726,2]
[363775499,1748867460045,-420.0,0.00019726,2]
[363775500,1748867460056,-542.46,0.00019726,2]
[363775501,1748867460066,-420.0,0.00019726,2]
[363775502,1748867460076,-420.0,0.00019726,2]
[363775503,1748867460086,-420.0,0.00019726,2]
[363775504,1748867460096,-420.0,0.00019726,2]
[363775505,1748867460105,-420.0,0.00019726,2]
[363775506,1748867460115,-669.01,0.00019726,2]
[363775507,1748867460125,-420.0,0.00019726,2]
[363775508,1748867460135,-420.0,0.00019726,2]
[363775509,1748867460145,-420.0,0.00019726,2]
[363775510,1748867460154,-420.0,0.00019726,2]
[363775511,1748867460164,-667.42,0.00019726,2]
[363775512,1748867460173,-420.0,0.00019726,2]
[363775513,1748867460183,-420.0,0.00019726,2]
[363775514,1748867460192,-1352.08,0.00019726,2]
[363775515,1748867460202,-420.0,0.00019726,2]
[363775516,1748867460211,-842.73,0.00019726,2]
[363775517,1748867460221,-1858.25,0.00019726,2]
[363775518,1748867460231,-420.0,0.00019726,2]
[363775519,1748867460241,-420.0,0.00019726,2]
[363775520,1748867460251,-554.07,0.00019726,2]
[363775521,1748867460261,-447.64117962,0.00019726,2]
[363775522,1748867460271,-420.0,0.00019726,2]
[363775523,1748867460281,-420.0,0.00019726,2]
[363775524,1748867460291,-420.0,0.00019726,2]
[363775525,1748867460301,-420.0,0.00019726,2]
[363775526,1748867460312,-820.8,0.00019726,2]
[363775527,1748867460321,-550.36,0.00019726,2]
[363775528,1748867460331,-420.0,0.00019726,2]
[363775529,1748867460342,-2393.79,0.00019726,2]
[363775530,1748867460352,-526.69461084,0.00019726,2]
[363775531,1748867460363,-420.0,0.00019726,2]
[363775532,1748867460372,-864.26,0.00019726,2]
[363775533,1748867460382,-3160.13,0.00019726,2]
[363775534,1748867460392,-420.0,0.00019726,2]
[363775535,1748867460402,-420.0,0.00019726,2]
[363775536,1748867460412,-1767.75,0.00019726,2]
[363775537,1748867460422,-420.0,0.00019726,2]
[363775538,1748867460432,-420.0,0.00019726,2]
[363775539,1748867460446,-2585.55,0.00019726,2]
[363775540,1748867460456,-1243.7,0.00019726,2]
[363775541,1748867460466,-420.0,0.00019726,2]
[363775542,1748867460476,-420.0,0.00019726,2]
[363775543,1748867460487,-2534.59,0.00019726,2]
[363775544,1748867460496,-420.0,0.00019726,2]
[363775545,1748867460507,-420.0,0.00019726,2]
[363775546,1748867460518,-880.65,0.00019726,2]
[363775547,1748867460528,-420.0,0.00019726,2]
[363775548,1748867460539,-420.0,0.00019726,2]
[363775549,1748867460548,-1315.03,0.00019726,2]
[363775550,1748867460557,-420.0,0.00019726,2]
[363775551,1748867460567,-420.0,0.00019726,2]
[363775552,1748867460576,-420.0,0.00019726,2]
[363775553,1748867460585,-420.0,0.00019726,2]
[363775554,1748867460596,-472.96,0.00019726,2]
[363775555,1748867460605,-420.0,0.00019726,2]
[363775556,1748867460615,-420.0,0.00019726,2]
[363775557,1748867460625,-420.0,0.00019726,2]
[363775558,1748867460635,-462.31,0.00019726,2]
[363775559,1748867460646,-1271.04,0.00019726,2]
[363775560,1748867460655,-648.74,0.00019726,2]
[363775561,1748867460665,-420.0,0.00019726,2]
[363775562,1748867460675,-420.0,0.00019726,2]
[363775563,1748867460685,-420.0,0.00019726,2]
[363775564,1748867460695,-420.0,0.00019726,2]
[363775565,1748867460705,-420.0,0.00019726,2]
[363775566,1748867460715,-420.0,0.00019726,2]
[363775567,1748867460725,-692.54,0.00019726,2]
[363775568,1748867460735,-3069.14,0.00019726,2]
[363775569,1748867460745,-685.63,0.00019726,2]
[363775570,1748867460755,-420.0,0.00019726,2]
[363775571,1748867460764,-1840.13,0.00019726,2]
[363775572,1748867460774,-612.55,0.00019726,2]
[363775573,1748867460784,-990.37,0.00019726,2]
[363775574,1748867460794,-420.0,0.00019726,2]
[363775575,1748867460804,-420.0,0.00019726,2]
[363775576,1748867460814,-467.8,0.00019726,2]
[363775577,1748867460824,-420.0,0.00019726,2]
[363775578,1748867460834,-420.0,0.00019726,2]
[363775579,1748867460845,-420.0,0.00019726,2]
[363775580,1748867460855,-1256.31,0.00019726,2]
[363775581,1748867460865,-283.60962674,0.00019726,2]
[363775582,1748867461003,-420.0,0.00019726,2]
[363775583,1748867461028,-420.0,0.00019726,2]
[363775584,1748867461039,-565.39,0.00019726,2]
[363775585,1748867461048,-743.93,0.00019726,2]
[363775586,1748867461059,-420.0,0.00019726,2]
[363775587,1748867461070,-420.0,0.00019726,2]
[363775588,1748867461080,-1533.64,0.00019726,2]
[363775589,1748867461090,-420.0,0.00019726,2]
[363775590,1748867461101,-723.86,0.00019726,2]
[363775591,1748867461111,-1076.54,0.00019726,2]
[363775592,1748867461121,-167.761,0.00019726,2]
[363775593,1748867461130,-150.0,0.00019732,2]
[363775594,1748867461140,-150.0,0.00019732,2]
[363775595,1748867461149,-150.0,0.00019732,2]
[363775596,1748867461159,-150.0,0.00019732,2]
[363775597,1748867461169,-150.05,0.00019732,2]
[363775598,1748867461178,-218.12399787,0.00019747,2]
[363775599,1748867461188,-3135.746,0.00019789,2]
[363775600,1748867461197,-263.89711962,0.00019793,2]
[363775601,1748867461207,-167.891,0.00019796,2]